Cogmind - Beta 17 @@@ ROGUE MODE // 2026.07.01 @ 20:41:41 Player: nnnnsk Result: Destroyed by P-60 Hacker with Shock Rifle Performance ------------- Evolutions (3) 1500 Regions Visited (5) 1000 Robots Destroyed (101) 505 Value Destroyed (3327) 3327 Prototype IDs (23) 460 Alien Tech Used (0) 0 Bonus (93) 93 TOTAL SCORE: 6885 Bonus ------- High Alert Combat Kills 93 Cogmind --------- Core Integrity 0/700 Matter 263/300 Energy 84/100 System Corruption 6% Temperature Cool (0) Movement Core (350) Ox6 Location -7/Storage Parts ------- > --- POWER (2) -------- (None) > --- PROPULSION (4) --- (None) > --- UTILITY (5) ------ Large Storage Unit Improved Signal Interpreter Target Analyzer > --- WEAPON (2) ------- (None) > --- INVENTORY (15) --- Improved Cesium-ion Thruster Medium Storage Unit Trap Scanner Advanced Visual Processing Unit Improved Sensor Array Improved Terrain Scanner Advanced Terrain Scan Processor Advanced EMP Blaster Axe Peak State ------------ > --- POWER ------------ Enhanced Nuclear Core Micro Nuclear Core > --- PROPULSION ------- Armored Treads Armored Treads Armored Treads Armored Treads > --- UTILITY ---------- Advanced Heat Sink Large Storage Unit Machine Analyzer Improved Sensor Array Target Analyzer > --- WEAPON ----------- Cooled Pulse Rifle Cooled Pulse Rifle > --- INVENTORY -------- Armored Treads Armored Huge Wheel Medium Storage Unit Trap Scanner Advanced Visual Processing Unit Improved Terrain Scanner Advanced ECM Suite Improved Light Armor Plating Hacking Suite Shock Rifle Shock Rifle Mini Assault Cannon Advanced EMP Blaster Axe [Rating: 50] Favorites ----------- Power Ion Engine Engine Ion Engine Power Core Micro Nuclear Core Propulsion Light Treads Treads Light Treads Leg Aluminum Leg Wheel Subdweller Monowheel Flight Unit Improved Cesium-ion Thruster Utility Large Storage Unit Device Advanced Heat Sink Storage Large Storage Unit Processor Target Analyzer Hackware Hacking Suite Protection Improved Power Shielding Weapon Medium Laser Energy Gun Medium Laser Ballistic Gun Enhanced Autogun Launcher Advanced EMP Blaster Slashing Weapon Axe Build | -11 -10 -10 -8 -7 -7 ------- Run | Yrd Mat Sub Mat Fac Sto Slots Evolved 6 | . . . 4 2 . Power 1 | . . . . 1 . Propulsion 2 | . . . 2 . . Utility 3 | . . . 2 1 . Weapon . | . . . . . . Parts Attached 86 | 7 1 18 28 19 13 Power 13 | 1 . 4 2 4 2 Engine 9 | 1 . 4 2 . 2 Core 4 | . . . . 4 . Reactor . | . . . . . . Propulsion 31 | 2 . 7 11 5 6 Treads 19 | 2 . 3 5 4 5 Leg 9 | . . 2 6 1 . Wheel 2 | . . 2 . . . Hover . | . . . . . . Flight 1 | . . . . . 1 Utility 22 | 2 1 3 7 8 1 Device 11 | 1 . 3 3 4 . Storage 2 | 1 1 . . . . Processor 4 | . . . 2 2 . Hackware 1 | . . . . 1 . Protection 4 | . . . 2 1 1 Artifact . | . . . . . . Weapon 20 | 2 . 4 8 2 4 Energy Gun 9 | 2 . 1 2 2 2 Energy Cannon . | . . . . . . Ballistic Gun 8 | . . 3 3 . 2 Ballistic Cannon . | . . . . . . Launcher 1 | . . . 1 . . Special Weapon . | . . . . . . Impact Weapon . | . . . . . . Slashing Weapon 2 | . . . 2 . . Piercing Weapon . | . . . . . . Special Melee Weapon . | . . . . . . Unidentified Prototypes 8 | . . 1 2 2 3 Corrupted Parts 1 | . . . . . 1 System Corruption 1 | . . . . . 1 Parts Lost 34 | . . 6 9 . 19 Power 3 | . . . . . 3 Propulsion 18 | . . 4 7 . 7 Utility 4 | . . . 1 . 3 Weapon 9 | . . 2 1 . 6 Highest Loss Streak 19 | . . 3 3 . 19 To Critical Strikes 1 | . . . 1 . . Average Backups 13 | 4 12 13 13 13 14 Power 1 | . 2 2 1 . 1 Propulsion 2 | 2 5 2 . 1 2 Utility 5 | . 3 4 4 6 6 Weapon 4 | 1 2 3 5 4 4 Tool/Special . | . . . . . . Unused Backups 28 | . 2 2 9 8 7 Power 3 | . . . 1 1 1 Propulsion 3 | . 2 . . . 1 Utility 7 | . . 1 1 2 3 Weapon 14 | . . 1 7 4 2 Tool/Special 1 | . . . . 1 . Average Slot Usage (%) 98 | . 99 99 97 99 98 Engine 8 | . 14 14 9 1 3 Core 4 | . . . . 13 10 Treads 21 | . 28 21 21 15 29 Leg 8 | . . 4 12 14 . Device 13 | . 13 14 13 16 6 Storage 10 | . 14 14 9 7 7 Processor 5 | . . . 4 8 15 Hackware 1 | . . . . 1 6 Protection 2 | . . . 8 2 . Energy Gun 11 | . 28 12 7 5 13 Ballistic Gun 7 | . . 13 9 7 . Peak Build Rating 50 | 9 10 21 36 50 49 Average Rating 26 | 5 9 11 25 44 46 On Entrance 18 | . 9 10 14 33 47 Avg Prop Armor Cover (%) 6 | . . 7 6 6 . Naked Turns . | . . . . . . Heaviest Build 47 | 15 30 34 40 46 47 Greatest Support 82 | 40 40 40 82 80 80 Greatest Overweight (x) 8 | . . 2 . 2 8 Average Overweight (x) . | . . . . . . Largest Inventory Capacity 15 | 8 15 15 15 15 15 Average Capacity 14 | 7 14 15 15 15 15 Most Carried 15 | 8 15 15 15 15 15 Average Carried 13 | 4 12 13 13 14 14 Final Capacity 15 | 8 15 15 15 15 15 Final Carried 15 | 8 15 12 13 15 9 Transmogrified Parts 4 | . . 4 . . . Integrity Recovered 28 | . . 28 . . . Class Distribution -------------------- 57% | Mutant 42% | Scavenger-Mutant Dominant Class ---------------- Mutant | -10/Materials Mutant | -10/Subcaves Scavenger-Mutant | -8/Materials Mutant | -7/Factory Mutant | -7/Storage Resources | -11 -10 -10 -8 -7 -7 ----------- Run | Yrd Mat Sub Mat Fac Sto Matter Collected 2021 | 165 125 254 861 380 236 Remotely . | . . . . . . Salvage Created 4271 | 107 376 493 1494 739 1062 Parts 222 | 4 24 29 76 39 50 Haulers Intercepted 5 | . 1 . 2 . 2 Recyclers Shooed 1 | . . . . . 1 Parts Field Recycled . | . . . . . . Retrieved Matter . | . . . . . . Parts Self-Destructed 9 | . . 9 . . . Prevented . | . . . . . . Parts Restored . | . . . . . . Kills | -11 -10 -10 -8 -7 -7 ------- Run | Yrd Mat Sub Mat Fac Sto Combat Hostiles Destroyed 75 | . 13 11 23 13 15 Melee 1 | . . . . 1 . Guns 72 | . 13 11 23 12 13 AOE 1 | . . . . . 1 Classes Destroyed 16 | 2 5 1 4 2 2 Worker 4 | . . . 2 . 2 Builder 2 | . . . 1 1 . Tunneler 1 | 1 . . . . . Hauler 5 | . 1 . 2 . 2 Recycler 9 | 1 . . 4 1 3 Operator 1 | . 1 . . . . Watcher 4 | . 1 . . 2 1 Swarmer 16 | . 9 . 4 . 3 Grunt 26 | . 4 2 12 6 2 Brawler 1 | . . . . . 1 Duelist 1 | . . . . . 1 Sentry 12 | . . . 5 1 6 Specialist 2 | . . . 2 . . Hunter 2 | . . . . 1 1 Programmer 6 | . . . . 5 1 Subdweller 9 | . . 9 . . . Best Kill Streak 7 | 2 4 2 7 4 3 Combat Bots Only 4 | . 4 2 4 3 2 Max Kills in Single Turn 2 | 1 2 1 1 1 2 Gunslinging 1 | . 1 . . . . Exploded 1 | . . . . . 1 Melee 1 | . . . . 1 . Uniques/NPCs Destroyed . | . . . . . . Combat | -11 -10 -10 -8 -7 -7 -------- Run | Yrd Mat Sub Mat Fac Sto Hostile Shots Fired 1011 | . 53 53 162 86 657 Missed 345 | . 20 15 48 23 239 Hits 666 | . 33 38 114 63 418 Projectile 666 | . 33 38 114 63 418 Critical Strikes 8 | . . 1 3 2 2 Damage Taken 7177 | . 312 715 1816 736 3598 Core 935 | . 19 78 126 113 599 Absorbed by Shields . | . . . . . . Redirected to Shielding 92 | . . . 92 . . Regen/Repaired (Parts) 94 | . 12 . 82 . . Core Remaining (%) 79 | 100 . 61 77 . . Volleys Fired 263 | 4 29 37 96 39 58 Largest 2 | 2 2 2 2 2 2 Hottest 129 | 100 100 110 129 50 96 Shots Fired 514 | 8 58 70 190 76 112 Gun 510 | 8 58 70 188 76 110 Cannon . | . . . . . . Launcher 4 | . . . 2 . 2 Special . | . . . . . . Kinetic 192 | . . 21 138 30 3 Thermal 308 | 8 58 49 50 46 97 Explosive . | . . . . . . Electromagnetic 14 | . . . 2 . 12 Robot Hit Streak 22 | 4 13 22 17 14 21 Robot Miss Streak 7 | 1 4 2 4 7 4 Penetration Max . | . . . . . . Secondary Targets 6 | . 3 . 2 . 1 Max Gunslinging Chain 1 | . 1 . 1 . 1 Shots Hit Robots 398 | 6 38 58 142 60 94 Core Hits 207 | 3 23 20 53 34 74 Critical Kills . | . . . . . . Critical Parts Destroyed 2 | . . . 1 1 . Critical Strikes 18 | . 3 3 4 3 5 Burn 13 | . 3 2 3 2 3 Destroy 3 | . . 1 1 1 . Corrupt 2 | . . . . . 2 Melee Attacks 24 | . . . 4 17 3 Impact . | . . . . . . Slashing 24 | . . . 4 17 3 Piercing . | . . . . . . Sneak Attacks 1 | . . . . 1 . Combat Hostiles . | . . . . . . Follow-up Attacks . | . . . . . . Damage Inflicted 7560 | 76 482 983 2647 1294 2078 Guns 6992 | 76 482 983 2379 1136 1936 Cannons . | . . . . . . Explosions 375 | . . . 268 . 107 Melee 193 | . . . . 158 35 Ramming . | . . . . . . Kinetic 2157 | . . 263 1529 320 45 Thermal 4712 | 76 482 720 850 816 1768 Explosive . | . . . . . . Electromagnetic 498 | . . . 268 . 230 Impact . | . . . . . . Slashing 193 | . . . . 158 35 Piercing . | . . . . . . Highest Corruption 5 | . . . . 3 5 Average Corruption 2 | . . . . 2 3 Corruption Purged . | . . . . . . Corruption Blocked . | . . . . . . Effects 23 | . . . . 6 17 Message Errors 6 | . . . . 3 3 Matter Fused 6 | . . . . 1 5 Heat Flow Errors 4 | . . . . 2 2 Energy Discharges 2 | . . . . . 2 Data Loss (minor) 1 | . . . . . 1 Data Loss (major) 1 | . . . . . 1 Misfires 1 | . . . . . 1 Alerts 2 | . . . . . 2 Overload Shots 2 | . . . . . 2 Overflow Damage 83 | . . . 83 . . Projectiles . | . . . . . . Explosions 83 | . . . 83 . . Melee . | . . . . . . Knockbacks . | . . . . . . Impact . | . . . . . . Kinetic . | . . . . . . Secondary . | . . . . . . Self-Inflicted Damage 239 | . . . 169 . 70 Shots 4 | . . . 2 . 2 Rammed . | . . . . . . Targets Rammed . | . . . . . . Kicked . | . . . . . . Crushed . | . . . . . . Highest Temperature 273 | 156 273 11 48 118 250 Average Temperature 70 | 79 95 6 8 61 63 Received Heat Transfer 2052 | . 78 198 657 141 978 Effects 1 | . 1 . . . . Energy Bleed 1 | . 1 . . . . Siege Activations . | . . . . . . Martial Activations . | . . . . . . Shielding Activations . | . . . . . . Robots Disrupted . | . . . . . . Combat Hostiles . | . . . . . . Robots Corrupted 1 | . . . . . 1 Combat Hostiles 1 | . . . . . 1 Parts Fried 2 | . . . 1 . 1 Impact Corruptions . | . . . . . . Robots Melted . | . . . . . . Combat Hostiles . | . . . . . . Parts Melted 19 | 1 6 2 2 8 . Heat Transferred 9002 | 222 1628 1402 1465 1628 2657 Parts Sabotaged . | . . . . . . Parts Stolen . | . . . . . . Parts Stripped . | . . . . . . Power Chain Reactions 1 | . . . . . 1 Alert | -11 -10 -10 -8 -7 -7 ------- Run | Yrd Mat Sub Mat Fac Sto Maximum Alert Level 2 | . . . 2 1 . Low Security (%) 84 | 100 100 . 60 89 100 Level 1 7 | . . . 11 10 . Level 2 8 | . . . 27 . . Level 3 . | . . . . . . Level 4 . | . . . . . . Level 5 . | . . . . . . High Security . | . . . . . . Max Security . | . . . . . . Peak Influence 633 | 10 144 . 633 285 181 Initial 285 | . . . . 285 82 Average 110 | . 52 . 186 89 92 Influence Increases 2514 | 10 458 50 1037 428 531 Destroy 0b10 Robot/C 1320 | . 260 40 460 260 300 Destroy 0b10 Robot/NC 130 | 10 15 . 45 20 40 Destroy Leader 368 | . 54 10 114 84 106 Successful Hack 105 | . 38 . 47 20 . Disable Machine 150 | . . . 90 15 45 Destroy Structure 81 | . 1 . 56 14 10 Lose Combat Pursuer 360 | . 90 . 225 15 30 Influence Decreases 2475 | 10 356 152 409 874 674 Entered New Map 493 | . . 50 . 343 100 Time Decay 1684 | 10 356 84 319 531 384 Lost Part 298 | . . 18 90 . 190 Squads Dispatched 16 | . 1 . 3 5 7 Investigation 2 | . . . 1 1 . Extermination 6 | . . . . 4 2 Reinforcement 4 | . 1 . 1 . 2 Assault 1 | . . . 1 . . Garrison 3 | . . . . . 3 Intercept . | . . . . . . Searches Triggered . | . . . . . . Construction Impeded . | . . . . . . Haulers Reinforced . | . . . . . . Active Scanning Responses . | . . . . . . Cargo Convoy Interrupts . | . . . . . . Stealth | -11 -10 -10 -8 -7 -7 --------- Run | Yrd Mat Sub Mat Fac Sto Distress Signals 2 | . 2 . . . . Communications Jammed . | . . . . . . Distress Signals . | . . . . . . Times Spotted 129 | . 22 11 49 22 25 Peak Tracking Total 8 | . 5 2 8 2 6 Tactical Retreats 11 | . 3 . 6 1 1 Traps | -11 -10 -10 -8 -7 -7 ------- Run | Yrd Mat Sub Mat Fac Sto Traps Triggered 7 | . . 2 4 1 . Indirectly . | . . . . . . Trap Hack Attempts . | . . . . . . Triggered . | . . . . . . Disarmed . | . . . . . . Reprogrammed . | . . . . . . Reused . | . . . . . . Traps Extracted . | . . . . . . Installed . | . . . . . . Triggered . | . . . . . . Machines | -11 -10 -10 -8 -7 -7 ---------- Run | Yrd Mat Sub Mat Fac Sto Machines Disabled 10 | . . . 6 1 3 Max in Single Turn 4 | . . . 4 1 1 Garrison Access 2 | . . . . 1 1 Machines Repaired . | . . . . . . Machines Dismantled . | . . . . . . Machines Sabotaged . | . . . . . . Overloaded Fab Kills . | . . . . . . Hacking | -11 -10 -10 -8 -7 -7 --------- Run | Yrd Mat Sub Mat Fac Sto Machines Accessed 25 | . 8 1 6 9 1 Terminals 13 | . 7 . 2 4 . Fabricators 1 | . . . . 1 . Repair Stations 3 | . 1 . 2 . . Recycling Units 2 | . . . . 2 . Scanalyzers 2 | . . . 1 1 . Garrison Access 3 | . . . 1 1 1 Total Hacks 72 | . 19 9 24 19 1 Successful 41 | . 14 9 12 5 1 Failed 31 | . 5 . 12 14 . Catastrophic 3 | . . . . 3 . Database Lockouts . | . . . . . . Manual 29 | . 11 . 8 10 . Terminals 31 | . 16 . 7 8 . Fabricators 2 | . . . . 2 . Repair Stations 13 | . 3 . 10 . . Recycling Units 4 | . . . . 4 . Scanalyzers 7 | . . . 4 3 . Garrison Access 6 | . . . 3 2 1 Terminal Hacks 14 | . 4 9 1 . . Record 8 | . . 8 . . . Terminal Index 1 | . 1 . . . . Locate Traps 1 | . 1 . . . . Investigation Status 1 | . . . 1 . . Hauler Manifests 1 | . 1 . . . . Zone Layout 1 | . 1 . . . . Proto ID Catalog 1 | . . 1 . . . Fabricator Hacks . | . . . . . . Repair Station Hacks 7 | . 2 . 5 . . Scan Component 4 | . 1 . 3 . . Repair 3 | . 1 . 2 . . Recycling Unit Hacks . | . . . . . . Scanalyzer 4 | . . . 2 2 . Insert Component 2 | . . . 1 1 . Analyze 2 | . . . 1 1 . Garrison Access Hacks 2 | . . . . 1 1 Seal Access 2 | . . . . 1 1 Unauthorized Hacks 14 | . 8 . 4 2 . Terminals 11 | . 8 . 3 . . Botnet 5 | . 3 . 2 . . Skim 6 | . 5 . 1 . . Fabricators . | . . . . . . Repair Stations . | . . . . . . Recycling Units 1 | . . . . 1 . Mask 1 | . . . . 1 . Scanalyzers 2 | . . . 1 1 . Researchers 2 | . . . 1 1 . Garrison Access . | . . . . . . Data Cores Recovered . | . . . . . . Used . | . . . . . . Hacking Detections 18 | . 4 . 6 8 . Full Trace Events . | . . . . . . Feedback Events . | . . . . . . Feedback Blocked . | . . . . . . Robot Schematics Acquired . | . . . . . . Robots Built . | . . . . . . Authchips . | . . . . . . Time . | . . . . . . Total Robot Build Rating . | . . . . . . Part Schematics Acquired 2 | . . . 1 1 . Parts Built . | . . . . . . Authchips . | . . . . . . Time . | . . . . . . Total Part Build Rating . | . . . . . . Part Studies Acquired . | . . . . . . Parts Repaired 3 | . 1 . 2 . . Time 108 | . 38 . 70 . . Parts Recycled . | . . . . . . Recycled Matter . | . . . . . . Retrieved Matter . | . . . . . . Retrieved Components . | . . . . . . Parts Scanalyzed 2 | . . . 1 1 . Part Schematics Acquired 2 | . . . 1 1 . Parts Damaged . | . . . . . . Bothacking | -11 -10 -10 -8 -7 -7 ------------ Run | Yrd Mat Sub Mat Fac Sto Used RIF Installer . | . . . . . . Robots Hacked . | . . . . . . Non-combat . | . . . . . . Combat . | . . . . . . Robot Hacks Applied . | . . . . . . Relay Couplers Released . | . . . . . . Fabnet Peak Effective % . | . . . . . . Robots Rewired . | . . . . . . Allies Hacked . | . . . . . . Hacks Repelled . | . . . . . . Allies | -11 -10 -10 -8 -7 -7 -------- Run | Yrd Mat Sub Mat Fac Sto Total Allies . | . . . . . . Largest Group . | . . . . . . Highest-Rated Group . | . . . . . . Highest-Rated Ally . | . . . . . . Total Orders . | . . . . . . Ally Attacks . | . . . . . . Total Damage . | . . . . . . Kills . | . . . . . . Allies Corrupted . | . . . . . . Allies Melted . | . . . . . . Intel | -11 -10 -10 -8 -7 -7 ------- Run | Yrd Mat Sub Mat Fac Sto Active Infowar (turns) 4971 | 31 1104 1014 886 1936 . Optics 310 | . . 310 . . . Sensors 2350 | . . . 872 1478 . Terrain 2133 | 31 1104 704 294 . . Structural 729 | . . . . 729 . Traps 503 | . . . . 503 . Machine Analysis 488 | . . . . 488 . Robot Analysis Total . | . . . . . . Derelict Logs Recovered 2 | . . 2 . . . Drone Launches . | . . . . . . Drone Recoveries . | . . . . . . Exploration | -11 -10 -10 -8 -7 -7 ------------- Run | Yrd Mat Sub Mat Fac Sto Turns Passed 8914 | 132 1142 2342 1931 2389 978 Spaces Moved 3762 | 67 384 1171 852 904 384 Core 6 | 4 . . . . 2 Treads 2831 | 63 384 1007 521 474 382 Legs 815 | . . 54 331 430 . Wheels 110 | . . 110 . . . Hover . | . . . . . . Flight . | . . . . . . Fastest Speed 50 | 50 160 95 110 110 166 Average Speed 155 | 153 160 169 140 142 170 Slowest Speed 450 | 160 160 260 160 330 450 Overloaded Moves . | . . . . . . Propulsion Burnouts . | . . . . . . Robots Hopped . | . . . . . . Potential Cave-ins . | . . . . . . Cave-ins Triggered . | . . . . . . Exploration Rate (%) 46 | 4 66 82 62 25 42 Regions Visited 5 Branch Regions 2 Pre-discovered Areas 2 | . . 2 . . . Known Exits Taken 3 | . 1 . 1 1 . Unknown Exits Taken 2 | 1 . 1 . . . Scrap Searched 3 | . . 3 . . . Spaces Dug 11 | . . . . 10 1 Terrain Destroyed 75 | . . . 58 10 7 Melee 11 | . . . . 10 1 Projectile . | . . . . . . AOE 64 | . . . 58 . 6 Terrain Rammed . | . . . . . . Walls Destroyed . | . . . . . . Machines Disabled . | . . . . . . Actions | -11 -10 -10 -8 -7 -7 --------- Run | Yrd Mat Sub Mat Fac Sto Total 6293 | 85 855 1458 1405 1903 587 Wait 1982 | . 427 207 364 881 103 Move 3757 | 66 383 1170 851 903 384 Hop . | . . . . . . Pick Up 75 | 8 10 9 29 14 5 Fast Attach 30 | 7 1 1 12 5 4 Attach 35 | . . 10 15 4 6 Detach 2 | . . 1 . 1 . Swap 61 | . 1 12 11 20 17 Drop 64 | . 4 11 23 19 7 Fire 263 | 4 29 37 96 39 58 Melee 24 | . . . 4 17 3 Ram . | . . . . . . Kick . | . . . . . . Crush . | . . . . . . Escape Stasis . | . . . . . . Rewire . | . . . . . . Trap . | . . . . . . Miscellaneous . | . . . . . . Route ------- -11/Scrapyard -10/Materials (discovered 6 exits: *Mat x3 / [*Min x2] / *Sub) -10/Subcaves (discovered 2 exits: *Mat x2) -8/Materials (discovered 3 exits: *Fac x3) -7/Factory -7/Storage (discovered 1 exit: Rec) History --------- Turn | Location | Event 8 | -11/Scrapyard | Discovered new exit (range 15) 133 | -11/Scrapyard | Entered Materials 311 | -10/Materials | Build established: Mutant 363 | -10/Materials | Repaired Imp. Terrain Scanner 425 | -10/Materials | Discovered new exit (range 10) 477 | -10/Materials | Discovered new exit (range 16) 663 | -10/Materials | Identified exit to Materials 731 | -10/Materials | Loaded intel: 1 repair station location 790 | -10/Materials | Identified exit to Subcaves 790 | -10/Materials | Learned location of 2 exits from Materials 840 | -10/Materials | Loaded intel: 21 trap records 929 | -10/Materials | Learned location of 2 exits from Mines 961 | -10/Materials | Learned 2 Storage zone layouts 1051 | -10/Materials | Learned location of 1 exit from Storage 1275 | -10/Materials | Entered Subcaves 1552 | -10/Subcaves | Disturbed a concealed Subdweller 2165 | -10/Subcaves | Build established: Scavenger-Mutant 2671 | -10/Subcaves | Learned location of Storage (-7) 2895 | -10/Subcaves | Discovered new exit (range 10) 2899 | -10/Subcaves | Lost 3 parts (2n1w) 2934 | -10/Subcaves | Discovered new exit (range 14) 2948 | -10/Subcaves | Learned Materials non-interactive machine intel 2970 | -10/Subcaves | Learned location of Zion (-7) 2970 | -10/Subcaves | Met a Zionite searching for "candidates" 3167 | -10/Subcaves | Visited 4L-MR0's lab 3207 | -10/Subcaves | Found Prototype Device 3208 | -10/Subcaves | Identified Sfc. Transmogrifier 3305 | -10/Subcaves | Build established: Mutant 3617 | -10/Subcaves | Entered Materials 3617 | -8/Materials | Evolved 4 slots: Propulsion x2, Utility x2 3618 | -8/Materials | Identified exit to Factory 3619 | -8/Materials | Loaded intel: 60 non-interactive machine locations 4086 | -8/Materials | Repaired Spk. Treads 4195 | -8/Materials | Build established: Scavenger-Mutant 4220 | -8/Materials | Discovered exit to Factory (range 5) 4324 | -8/Materials | Repaired Imp. Terrain Scanner 4823 | -8/Materials | Lost 3 parts (3n) 5217 | -8/Materials | First assault squad dispatched 5548 | -8/Materials | Entered Factory 5548 | -7/Factory | Evolved 2 slots: Power x1, Utility x1 7008 | -7/Factory | Build established: Mutant 7901 | -7/Factory | Discovered new exit (range 10) 7918 | -7/Factory | Identified exit to Storage 7937 | -7/Factory | Entered Storage 7938 | -7/Storage | Identified exit to Recycling 8196 | -7/Storage | Garrison activated, responded to threat 8868 | -7/Storage | Core integrity fell below 50% 8900 | -7/Storage | Core integrity fell below 20% 8915 | -7/Storage | Destroyed by P-60 Hacker with Shock Rifle Last Messages --------------- 08893_ Acquired Corrupted Lgt. Treads. 08893_ Integrated Corrupted Lgt. Treads (+1). 08894_ Y-54 Guardian IFF system glitched. 08896_ K-01 Serf collects debris. 08898_ Acquired Faulty Enh. Autogun. 08898_ Faulty integration triggers energy drain (-37). 08899_ K-01 Serf collects debris. 08901_ Lgt. Treads destroyed. 08902_ K-01 Serf collects debris. 08902_ U-05 Engineer builds a Door. 08902_ Acquired Enh. Autogun. 08904_ Hacking Suite destroyed. 08907_ Imp. Light Armor Plating destroyed. 08907_ Y-54 Guardian destroyed. 08907_ K-01 Serf collects debris. 08911_ Slug penetrates Wall. 08911_ K-01 Serf collects debris. 08913_ Faulty Enh. Autogun destroyed. 08915_ Enh. Autogun destroyed. Map ----- +----------------------------------------------------+ | ????????????????????????????????????????# %+ | | ????????????????????????????????????????# "" !# | | ????????????????????????????????????????# %""" # | | ????????????????????????????????????????# """ # | | ????????????????????????????????????????# ] # | | ????????????????????????????????????????########## | | ????????????????????????????????????????# # | | ????????????????????????????????????????# """"" %/ | | ?????????????????????###+##+????????????# """"" # | | ?????????????????????# ?????????????# """"" # | | ?????????????????????# ?????????????# # | | ?????????????????????? ?????????????# """""% # | | ????????????????#????# #?????####### """"" # | | ????????????????# ???# #???????????# """"" # | | ????????????? ?## #??# #???????????# # | | ????????????? # ######+################+####### | | ?????????????? + [%==% + * ! # | | ???????????????# [########## ] + | | ???????????????# %#????##### # | | ????????????#### =###### # # | | ????????? # # | | ???????????### [ ###### ############## | | ?????????????#+## h###+###???## ##?????????#### | | ????????? + p %Y #????# #??????????# | | ????????????????#+##### !k!!#????# #??????????# | | ?????????????????????##Y @%[#????# #??????????# | | ?????????????????????## """ #????# #??????????# ! | | ?????????????????????## """ #???## ##?????????# | | ?????????????????????## """ ##### ########### | | ?????????????????????## + # | | ?????????????????????## ######### ######### # | | ????????????????????? ###????#####+#####????# #### | | ????????????????????? #??????# #????# ???? | | ????????????????????? #??????# #????##???? | | ????????????????????? #??????# #?????????? | | ????????????????????? #??????# #?????????? | | ?????????????????????##??????###########?????????? | | | | | | | | | | | | | | | | | | | | | | | | | | | +----------------------------------------------------+ Best States ------------- Heat Dissipation 53 Energy Generation 28 Energy Capacity 490 Matter Stores 300 Matter Capacity 300 Sight Range 21 Robot Scan Range 15 Terrain Scan Range 16 Terrain Scan Density 10 Armor Coverage 150 Power Shielding 66 Evasion (%) 55 Targeting Accuracy 8 Target Analysis 5 Recoil Reduction 4 Offensive Hacking 10 Item Schematics ----------------- Carbon-fiber Leg | -8/Materials | Scanalyzed Med. Storage Unit | -7/Factory | Scanalyzed Robot Schematics ------------------ None Fabricated ------------ Nothing Repaired ---------- Imp. Terrain Scanner | 45% | -10/Materials Spk. Treads | 67% | -8/Materials Imp. Terrain Scanner | 27% | -8/Materials Studied --------- None Alien Tech Used ----------------- None Achievements -------------- None Challenges ------------ None Game ------ Seed DispersalNetworkDistortion Manual? 0 Play Time 01:11:35 Cumulative 88.0 hours Start 2026.06.30 @ 21:05:45 End 2026.07.01 @ 20:41:41 Sessions 5 Manual Loads 0 Difficulty Rogue Special Mode None Game No. 100 Rogue 93 Adventurer 0 Explorer 7 Win Type - Total 1 Types 1/0/0/0/0/0/0/0/0/0 Lore% 27 Gallery% 36 Achievement% 30 Wizard Run 0 Options --------- Layout 1 ASCII 0 Keyboard 0 Movement Numpad Keybinds 0 Fullscreen 2 Font 32/SmallcapsGlow Map View 50x35 Zoom Use 0% Tactical HUD 1 Map Filters NONE Filters NONE Steam 1 RUN: 27556868-5888-4472-95e9-0821999110f6